[Event "Titled Tuesday Blitz October 11 Late 2022"]
[White "Zhukov, Maksim"]
[Black "Le Goff, Ronan"]
[WhiteFideId "34181790"]
[BlackFideId "612073"]
[WhiteElo "1929"]
[BlackElo "2276"]
[Result "0-1"]
[Round "03"]
[TimeControl "180+1"]
[Date "2022.10.12"]
[WhiteClock "0:00:03"]
[BlackClock "0:00:16"]

1. Nf3 {[%clk 0:03:00]}  Nf6 {[%clk 0:02:59]} 2. g3 {[%clk 0:03:01]}  e6 {[%clk 0:02:58]} 3. Bg2 {[%clk 0:03:01]}  d5 {[%clk 0:02:58]} 4. O-O {[%clk 0:03:02]}  Be7 {[%clk 0:02:59]} 5. d3 {[%clk 0:03:03]}  O-O {[%clk 0:03:00]} 6. Nbd2 {[%clk 0:03:04]}  a5 {[%clk 0:02:58]} 7. e4 {[%clk 0:03:05]}  a4 {[%clk 0:02:58]} 8. e5 {[%clk 0:03:06]}  Nfd7 {[%clk 0:02:58]} 9. Re1 {[%clk 0:03:05]}  c5 {[%clk 0:02:58]} 10. Nf1 {[%clk 0:03:05]}  Nc6 {[%clk 0:02:58]} 11. h4 {[%clk 0:03:06]}  Qc7 {[%clk 0:02:55]} 12. Bf4 {[%clk 0:03:04]}  b5 {[%clk 0:02:55]} 13. N1h2 {[%clk 0:03:04]}  Ba6 {[%clk 0:02:55]} 14. h5 {[%clk 0:03:05]}  Rfc8 {[%clk 0:02:55]} 15. Ng4 {[%clk 0:03:04]}  Qd8 {[%clk 0:02:53]} 16. h6 {[%clk 0:03:04]}  g6 {[%clk 0:02:52]} 17. Qc1 {[%clk 0:03:00]}  c4 {[%clk 0:02:45]} 18. d4 {[%clk 0:03:00]}  b4 {[%clk 0:02:45]} 19. Bg5 {[%clk 0:02:59]}  Bxg5 {[%clk 0:02:40]} 20. Nxg5 {[%clk 0:02:58]}  Nxd4 {[%clk 0:02:40]} 21. Qf4 {[%clk 0:02:58]}  Nf5 {[%clk 0:02:40]} 22. Ne3 {[%clk 0:02:01]}  Nxh6 {[%clk 0:02:25]} 23. Nxe6 {[%clk 0:01:52]}  fxe6 {[%clk 0:02:26]} 24. Qxh6 {[%clk 0:01:52]}  Qf8 {[%clk 0:02:20]} 25. Qg5 {[%clk 0:01:49]}  Ra7 {[%clk 0:02:16]} 26. Ng4 {[%clk 0:01:48]}  Kh8 {[%clk 0:02:07]} 27. Nf6 {[%clk 0:01:40]}  Nxf6 {[%clk 0:02:05]} 28. exf6 {[%clk 0:01:40]}  Re8 {[%clk 0:01:59]} 29. Qe5 {[%clk 0:01:32]}  Rf7 {[%clk 0:01:51]} 30. Bxd5 {[%clk 0:01:32]}  Rxf6 {[%clk 0:01:48]} 31. Rad1 {[%clk 0:01:15]}  Kg8 {[%clk 0:01:36]} 32. f4 {[%clk 0:01:11]}  a3 {[%clk 0:01:32]} 33. bxa3 {[%clk 0:01:10]}  bxa3 {[%clk 0:01:33]} 34. Bc6 {[%clk 0:01:09]}  Re7 {[%clk 0:01:27]} 35. Rd6 {[%clk 0:01:08]}  Rf5 {[%clk 0:01:21]} 36. Qd4 {[%clk 0:01:07]}  Qf6 {[%clk 0:01:17]} 37. Qb6 {[%clk 0:00:27]}  Kg7 {[%clk 0:00:57]} 38. Qxa6 {[%clk 0:00:25]}  Qc3 {[%clk 0:00:57]} 39. Kf2 {[%clk 0:00:10]}  Qxc2+ {[%clk 0:00:49]} 40. Re2 {[%clk 0:00:10]}  Qc1 {[%clk 0:00:44]} 41. Be4 {[%clk 0:00:08]}  Rf6 {[%clk 0:00:39]} 42. Bd5 {[%clk 0:00:06]}  Ref7 {[%clk 0:00:17]} 43. Qxc4 {[%clk 0:00:05]}  Rxf4+ {[%clk 0:00:16]} 44. gxf4 {[%clk 0:00:05]}  Rxf4+ {[%clk 0:00:17]} 45. Qxf4 {[%clk 0:00:02]}  Qxf4+ {[%clk 0:00:16]} 46. Bf3 {[%clk 0:00:03]}  Qxd6 {[%clk 0:00:16]} 47. Kg2 {[%clk 0:00:03]}  e5 {[%clk 0:00:16]} 0-1


[Site "https://www.chess.com"]

[Event "Titled Tuesday Blitz October 11 Late 2022"]
[White "miragha_yev"]
[Black "Fedoseev, Vladimir"]
[BlackFideId "24130737"]
[WhiteElo "2790"]
[BlackElo "2726"]
[Result "0-1"]
[Round "03"]
[TimeControl "180+1"]
[Date "2022.10.11"]
[WhiteClock "0:00:16"]
[BlackClock "0:00:05"]

1. e4 {[%clk 0:03:00]}  c5 {[%clk 0:02:58]} 2. Nf3 {[%clk 0:02:57]}  e6 {[%clk 0:02:58]} 3. g3 {[%clk 0:02:56]}  Nc6 {[%clk 0:02:52]} 4. Bg2 {[%clk 0:02:56]}  g6 {[%clk 0:02:52]} 5. d4 {[%clk 0:02:54]}  cxd4 {[%clk 0:02:50]} 6. Nxd4 {[%clk 0:02:54]}  a6 {[%clk 0:02:37]} 7. Nxc6 {[%clk 0:02:52]}  bxc6 {[%clk 0:02:36]} 8. Qd4 {[%clk 0:02:52]}  f6 {[%clk 0:02:35]} 9. O-O {[%clk 0:02:50]}  Qc7 {[%clk 0:02:29]} 10. c4 {[%clk 0:02:47]}  c5 {[%clk 0:02:17]} 11. Qd3 {[%clk 0:02:45]}  Bb7 {[%clk 0:02:18]} 12. Nc3 {[%clk 0:02:45]}  Ne7 {[%clk 0:02:17]} 13. Bf4 {[%clk 0:02:44]}  Qb6 {[%clk 0:02:09]} 14. Na4 {[%clk 0:02:40]}  Qc6 {[%clk 0:02:05]} 15. b3 {[%clk 0:02:36]}  Nf5 {[%clk 0:02:03]} 16. Rad1 {[%clk 0:02:22]}  e5 {[%clk 0:01:51]} 17. Be3 {[%clk 0:02:18]}  Nd4 {[%clk 0:01:49]} 18. f4 {[%clk 0:02:13]}  d6 {[%clk 0:01:32]} 19. Nc3 {[%clk 0:02:10]}  Be7 {[%clk 0:01:26]} 20. Nd5 {[%clk 0:02:09]}  Bd8 {[%clk 0:01:25]} 21. fxe5 {[%clk 0:01:45]}  dxe5 {[%clk 0:01:23]} 22. Bh6 {[%clk 0:01:46]}  Rg8 {[%clk 0:01:13]} 23. Bc1 {[%clk 0:01:33]}  Qd6 {[%clk 0:01:05]} 24. Ba3 {[%clk 0:01:27]}  Bxd5 {[%clk 0:01:00]} 25. cxd5 {[%clk 0:01:26]}  Kf7 {[%clk 0:00:56]} 26. Rc1 {[%clk 0:01:25]}  Bb6 {[%clk 0:00:54]} 27. Rc4 {[%clk 0:01:25]}  a5 {[%clk 0:00:42]} 28. Rfc1 {[%clk 0:01:24]}  Rgc8 {[%clk 0:00:41]} 29. Bh3 {[%clk 0:01:23]}  Rc7 {[%clk 0:00:41]} 30. Kg2 {[%clk 0:01:23]}  Kg7 {[%clk 0:00:40]} 31. Qc3 {[%clk 0:01:18]}  Ne2 {[%clk 0:00:29]} 32. Qe3 {[%clk 0:01:16]}  Nxc1 {[%clk 0:00:29]} 33. Bxc1 {[%clk 0:01:17]}  f5 {[%clk 0:00:26]} 34. Qh6+ {[%clk 0:01:16]}  Kh8 {[%clk 0:00:26]} 35. exf5 {[%clk 0:01:17]}  Qxd5+ {[%clk 0:00:25]} 36. Kg1 {[%clk 0:01:10]}  Rf7 {[%clk 0:00:24]} 37. Bg4 {[%clk 0:01:03]}  Raf8 {[%clk 0:00:22]} 38. h4 {[%clk 0:00:58]}  Rxf5 {[%clk 0:00:19]} 39. Bxf5 {[%clk 0:00:55]}  Rxf5 {[%clk 0:00:20]} 40. Qe3 {[%clk 0:00:50]}  Rf3 {[%clk 0:00:17]} 41. Qe1 {[%clk 0:00:47]}  Rd3 {[%clk 0:00:17]} 42. Qe2 {[%clk 0:00:33]}  Rd1+ {[%clk 0:00:16]} 43. Kf2 {[%clk 0:00:34]}  Rh1 {[%clk 0:00:11]} 44. Ke3 {[%clk 0:00:32]}  Rxc1 {[%clk 0:00:08]} 45. Qf2 {[%clk 0:00:22]}  Rxc4 {[%clk 0:00:07]} 46. Qf8+ {[%clk 0:00:17]}  Qg8 {[%clk 0:00:08]} 47. Qf6+ {[%clk 0:00:18]}  Qg7 {[%clk 0:00:08]} 48. Qxb6 {[%clk 0:00:18]}  Rc3+ {[%clk 0:00:04]} 49. Kd2 {[%clk 0:00:18]}  Rf3 {[%clk 0:00:04]} 50. Qb8+ {[%clk 0:00:16]}  Rf8 {[%clk 0:00:05]} 51. Qd6 {[%clk 0:00:16]}  e4 {[%clk 0:00:05]} 52. Qe6 {[%clk 0:00:16]}  Qd4+ {[%clk 0:00:05]} 53. Kc2 {[%clk 0:00:16]}  Rf2+ {[%clk 0:00:05]} 0-1


[Site "https://www.chess.com"]

[Event "Titled Tuesday Blitz October 11 Late 2022"]
[White "Al Hosani, Omran"]
[Black "Bilych, Olexiy"]
[WhiteFideId "9308733"]
[BlackFideId "14156504"]
[WhiteElo "2593"]
[BlackElo "2779"]
[Result "0-1"]
[Round "04"]
[TimeControl "180+1"]
[Date "2022.10.12"]
[WhiteClock "0:01:00"]
[BlackClock "0:01:07"]

1. d4 {[%clk 0:02:59]}  Nf6 {[%clk 0:02:59]} 2. c4 {[%clk 0:03:00]}  e6 {[%clk 0:02:59]} 3. Nf3 {[%clk 0:03:00]}  d5 {[%clk 0:03:00]} 4. g3 {[%clk 0:03:01]}  dxc4 {[%clk 0:03:00]} 5. Bg2 {[%clk 0:03:01]}  Bb4+ {[%clk 0:03:00]} 6. Nbd2 {[%clk 0:03:00]}  b5 {[%clk 0:03:00]} 7. O-O {[%clk 0:03:00]}  Bb7 {[%clk 0:03:00]} 8. a4 {[%clk 0:03:01]}  Bxd2 {[%clk 0:02:36]} 9. Bxd2 {[%clk 0:02:58]}  a6 {[%clk 0:02:37]} 10. Bb4 {[%clk 0:02:55]}  Nd5 {[%clk 0:02:34]} 11. Bc5 {[%clk 0:02:51]}  Nd7 {[%clk 0:02:34]} 12. Ne5 {[%clk 0:02:49]}  Nxc5 {[%clk 0:02:19]} 13. dxc5 {[%clk 0:02:48]}  c6 {[%clk 0:02:15]} 14. axb5 {[%clk 0:02:44]}  axb5 {[%clk 0:02:16]} 15. Rxa8 {[%clk 0:02:44]}  Bxa8 {[%clk 0:02:13]} 16. Bxd5 {[%clk 0:02:25]}  cxd5 {[%clk 0:01:57]} 17. e3 {[%clk 0:02:10]}  O-O {[%clk 0:01:55]} 18. b4 {[%clk 0:02:08]}  f6 {[%clk 0:01:53]} 19. Nf3 {[%clk 0:02:08]}  e5 {[%clk 0:01:53]} 20. Qe2 {[%clk 0:01:54]}  d4 {[%clk 0:01:48]} 21. exd4 {[%clk 0:01:52]}  Qd5 {[%clk 0:01:42]} 22. Kg2 {[%clk 0:01:44]}  exd4 {[%clk 0:01:40]} 23. Re1 {[%clk 0:01:43]}  d3 {[%clk 0:01:26]} 24. Qe3 {[%clk 0:01:39]}  c3 {[%clk 0:01:23]} 25. Ra1 {[%clk 0:01:27]}  d2 {[%clk 0:01:17]} 26. c6 {[%clk 0:01:00]}  Qxc6 {[%clk 0:01:07]} 0-1


[Site "https://www.chess.com"]

[Event "Titled Tuesday Blitz October 11 Late 2022"]
[White "Azaladze, Shota"]
[Black "Tomaszewski, Kacper"]
[WhiteFideId "13603027"]
[BlackFideId "1127373"]
[WhiteElo "2741"]
[BlackElo "2563"]
[Result "0-1"]
[Round "04"]
[TimeControl "180+1"]
[Date "2022.10.12"]
[WhiteClock "0:01:45"]
[BlackClock "0:01:18"]

1. b3 {[%clk 0:03:00]}  e5 {[%clk 0:02:55]} 2. Bb2 {[%clk 0:02:59]}  Nc6 {[%clk 0:02:55]} 3. e3 {[%clk 0:03:00]}  Nge7 {[%clk 0:02:56]} 4. d4 {[%clk 0:02:58]}  exd4 {[%clk 0:02:54]} 5. exd4 {[%clk 0:02:59]}  d5 {[%clk 0:02:54]} 6. Ne2 {[%clk 0:02:57]}  Bg4 {[%clk 0:02:52]} 7. f3 {[%clk 0:02:57]}  Bh5 {[%clk 0:02:50]} 8. Qd2 {[%clk 0:02:57]}  Qd7 {[%clk 0:02:46]} 9. Nbc3 {[%clk 0:02:55]}  O-O-O {[%clk 0:02:45]} 10. O-O-O {[%clk 0:02:54]}  f6 {[%clk 0:02:40]} 11. h4 {[%clk 0:02:52]}  Bf7 {[%clk 0:02:40]} 12. h5 {[%clk 0:02:52]}  Kb8 {[%clk 0:02:31]} 13. Nf4 {[%clk 0:02:50]}  Rg8 {[%clk 0:02:26]} 14. Bd3 {[%clk 0:02:48]}  g5 {[%clk 0:02:18]} 15. hxg6 {[%clk 0:02:49]}  hxg6 {[%clk 0:02:18]} 16. Na4 {[%clk 0:02:48]}  Nf5 {[%clk 0:02:09]} 17. Nc5 {[%clk 0:02:46]}  Bxc5 {[%clk 0:02:08]} 18. dxc5 {[%clk 0:02:46]}  Ne5 {[%clk 0:02:05]} 19. Rh7 {[%clk 0:02:44]}  d4 {[%clk 0:01:40]} 20. g4 {[%clk 0:02:36]}  Ne3 {[%clk 0:01:40]} 21. Rdh1 {[%clk 0:02:33]}  Nxf3 {[%clk 0:01:40]} 22. Qb4 {[%clk 0:02:30]}  Qxg4 {[%clk 0:01:32]} 23. c6 {[%clk 0:02:23]}  b6 {[%clk 0:01:31]} 24. Rxf7 {[%clk 0:02:22]}  Qxf4 {[%clk 0:01:28]} 25. Kb1 {[%clk 0:02:13]}  Rh8 {[%clk 0:01:22]} 26. Rxh8 {[%clk 0:02:05]}  Nd2+ {[%clk 0:01:22]} 27. Ka1 {[%clk 0:02:00]}  Nxc2+ {[%clk 0:01:19]} 28. Bxc2 {[%clk 0:01:47]}  Qf1+ {[%clk 0:01:17]} 29. Bc1 {[%clk 0:01:45]}  Qxc1+ {[%clk 0:01:17]} 30. Bb1 {[%clk 0:01:45]}  Qxb1# {[%clk 0:01:18]} 0-1


[Site "https://www.chess.com"]

[Event "Titled Tuesday Blitz October 11 Late 2022"]
[White "Bazeev, German"]
[Black "Storey, Charles H"]
[WhiteFideId "24119350"]
[BlackFideId "406686"]
[WhiteElo "2493"]
[BlackElo "2252"]
[Result "1/2-1/2"]
[Round "04"]
[TimeControl "180+1"]
[Date "2022.10.12"]
[WhiteClock "0:00:10"]
[BlackClock "0:00:07"]

1. d4 {[%clk 0:03:00]}  g6 {[%clk 0:02:57]} 2. e4 {[%clk 0:02:59]}  Bg7 {[%clk 0:02:57]} 3. Nc3 {[%clk 0:02:59]}  c5 {[%clk 0:02:58]} 4. Be3 {[%clk 0:02:57]}  Qa5 {[%clk 0:02:56]} 5. Ne2 {[%clk 0:02:34]}  Nf6 {[%clk 0:02:56]} 6. f3 {[%clk 0:02:31]}  cxd4 {[%clk 0:02:46]} 7. Nxd4 {[%clk 0:02:29]}  Nc6 {[%clk 0:02:47]} 8. Nb3 {[%clk 0:02:26]}  Qd8 {[%clk 0:02:46]} 9. Qd2 {[%clk 0:02:22]}  d6 {[%clk 0:02:46]} 10. O-O-O {[%clk 0:02:20]}  O-O {[%clk 0:02:45]} 11. g4 {[%clk 0:02:19]}  Be6 {[%clk 0:02:42]} 12. h4 {[%clk 0:02:15]}  Ne5 {[%clk 0:02:37]} 13. Nd4 {[%clk 0:02:15]}  Qa5 {[%clk 0:02:29]} 14. Nxe6 {[%clk 0:02:01]}  fxe6 {[%clk 0:02:25]} 15. Be2 {[%clk 0:02:01]}  Rfc8 {[%clk 0:02:22]} 16. Kb1 {[%clk 0:02:01]}  Nc4 {[%clk 0:02:11]} 17. Bxc4 {[%clk 0:01:57]}  Rxc4 {[%clk 0:02:12]} 18. Ne2 {[%clk 0:01:43]}  Qxd2 {[%clk 0:02:10]} 19. Rxd2 {[%clk 0:01:41]}  e5 {[%clk 0:02:06]} 20. b3 {[%clk 0:01:39]}  Rcc8 {[%clk 0:01:59]} 21. c4 {[%clk 0:01:40]}  Nd7 {[%clk 0:01:58]} 22. Nc3 {[%clk 0:01:27]}  Rf8 {[%clk 0:01:53]} 23. Rh3 {[%clk 0:01:26]}  Rf7 {[%clk 0:01:44]} 24. Kc2 {[%clk 0:01:24]}  b6 {[%clk 0:01:42]} 25. Kd1 {[%clk 0:01:23]}  Nf8 {[%clk 0:01:36]} 26. Ke2 {[%clk 0:01:15]}  Ne6 {[%clk 0:01:36]} 27. Nd5 {[%clk 0:01:16]}  h5 {[%clk 0:01:28]} 28. gxh5 {[%clk 0:01:13]}  gxh5 {[%clk 0:01:28]} 29. Rd1 {[%clk 0:01:12]}  Kh7 {[%clk 0:01:27]} 30. Rg1 {[%clk 0:01:11]}  Bh6 {[%clk 0:01:10]} 31. Rhg3 {[%clk 0:00:53]}  Bxe3 {[%clk 0:01:04]} 32. Kxe3 {[%clk 0:00:44]}  Raf8 {[%clk 0:00:58]} 33. a4 {[%clk 0:00:15]}  Nd4 {[%clk 0:00:55]} 34. Rg5 {[%clk 0:00:14]}  Rxf3+ {[%clk 0:00:51]} 35. Kd2 {[%clk 0:00:14]}  Rf2+ {[%clk 0:00:42]} 36. Kd3 {[%clk 0:00:13]}  R2f3+ {[%clk 0:00:22]} 37. Ne3 {[%clk 0:00:12]}  R8f6 {[%clk 0:00:22]} 38. Rg7+ {[%clk 0:00:09]}  Kh6 {[%clk 0:00:22]} 39. Rxe7 {[%clk 0:00:09]}  Rh3 {[%clk 0:00:13]} 40. Rgg7 {[%clk 0:00:08]}  Rff3 {[%clk 0:00:12]} 41. Rh7+ {[%clk 0:00:08]}  Kg6 {[%clk 0:00:13]} 42. Reg7+ {[%clk 0:00:08]}  Kf6 {[%clk 0:00:13]} 43. Rf7+ {[%clk 0:00:09]}  Ke6 {[%clk 0:00:13]} 44. Rxf3 {[%clk 0:00:09]}  Nxf3 {[%clk 0:00:13]} 45. Rh6+ {[%clk 0:00:09]}  Kd7 {[%clk 0:00:12]} 46. Rxh5 {[%clk 0:00:07]}  Rh2 {[%clk 0:00:11]} 47. Nf5 {[%clk 0:00:05]}  Ne1+ {[%clk 0:00:10]} 48. Ke3 {[%clk 0:00:05]}  Nc2+ {[%clk 0:00:11]} 49. Kf3 {[%clk 0:00:05]}  Rh3+ {[%clk 0:00:11]} 50. Kg4 {[%clk 0:00:05]}  Rxb3 {[%clk 0:00:11]} 51. Rh7+ {[%clk 0:00:06]}  Kc6 {[%clk 0:00:11]} 52. h5 {[%clk 0:00:07]}  Nd4 {[%clk 0:00:11]} 53. h6 {[%clk 0:00:07]}  Nxf5 {[%clk 0:00:08]} 54. exf5 {[%clk 0:00:08]}  Rb1 {[%clk 0:00:08]} 55. f6 {[%clk 0:00:07]}  Rg1+ {[%clk 0:00:05]} 56. Kf5 {[%clk 0:00:07]}  Rf1+ {[%clk 0:00:05]} 57. Ke6 {[%clk 0:00:07]}  e4 {[%clk 0:00:06]} 58. Rg7 {[%clk 0:00:07]}  e3 {[%clk 0:00:06]} 59. Rg2 {[%clk 0:00:08]}  Rf2 {[%clk 0:00:05]} 60. Rg1 {[%clk 0:00:07]}  e2 {[%clk 0:00:06]} 61. Re1 {[%clk 0:00:08]}  Rh2 {[%clk 0:00:03]} 62. f7 {[%clk 0:00:08]}  Rxh6+ {[%clk 0:00:04]} 63. Ke7 {[%clk 0:00:08]}  Rh7 {[%clk 0:00:03]} 64. Rxe2 {[%clk 0:00:09]}  Rxf7+ {[%clk 0:00:04]} 65. Kxf7 {[%clk 0:00:09]}  Kc5 {[%clk 0:00:04]} 66. Re4 {[%clk 0:00:08]}  d5 {[%clk 0:00:04]} 67. cxd5 {[%clk 0:00:08]}  Kxd5 {[%clk 0:00:05]} 68. Rh4 {[%clk 0:00:09]}  a6 {[%clk 0:00:06]} 69. Ke7 {[%clk 0:00:10]}  b5 {[%clk 0:00:06]} 70. axb5 {[%clk 0:00:10]}  axb5 {[%clk 0:00:07]} 71. Kd7 {[%clk 0:00:11]}  Kc5 {[%clk 0:00:08]} 72. Ke6 {[%clk 0:00:12]}  b4 {[%clk 0:00:08]} 73. Ke5 {[%clk 0:00:12]}  b3 {[%clk 0:00:08]} 74. Rh8 {[%clk 0:00:11]}  Kc4 {[%clk 0:00:07]} 75. Rc8+ {[%clk 0:00:11]}  Kd3 {[%clk 0:00:07]} 76. Rb8 {[%clk 0:00:11]}  Kc2 {[%clk 0:00:07]} 77. Rc8+ {[%clk 0:00:11]}  Kd3 {[%clk 0:00:07]} 78. Rb8 {[%clk 0:00:11]}  Kc2 {[%clk 0:00:07]} 79. Rc8+ {[%clk 0:00:10]}  Kd3 {[%clk 0:00:07]} 1/2-1/2


[Site "https://www.chess.com"]

[Event "Titled Tuesday Blitz October 11 Late 2022"]
[White "Bernadskiy, Vitaliy"]
[Black "Bjelobrk, Igor"]
[WhiteFideId "14100371"]
[BlackFideId "4300726"]
[WhiteElo "2781"]
[BlackElo "2588"]
[Result "1-0"]
[Round "04"]
[TimeControl "180+1"]
[Date "2022.10.12"]
[WhiteClock "0:01:21"]
[BlackClock "0:00:19"]

1. e4 {[%clk 0:03:00]}  e5 {[%clk 0:02:59]} 2. Nf3 {[%clk 0:03:00]}  Nc6 {[%clk 0:02:59]} 3. Bc4 {[%clk 0:03:00]}  Bc5 {[%clk 0:02:59]} 4. O-O {[%clk 0:03:00]}  Nf6 {[%clk 0:02:59]} 5. d3 {[%clk 0:03:00]}  d6 {[%clk 0:02:59]} 6. Re1 {[%clk 0:03:00]}  h6 {[%clk 0:02:57]} 7. c3 {[%clk 0:02:58]}  a5 {[%clk 0:02:57]} 8. Nbd2 {[%clk 0:02:57]}  O-O {[%clk 0:02:56]} 9. Nf1 {[%clk 0:02:54]}  a4 {[%clk 0:02:20]} 10. Ng3 {[%clk 0:02:52]}  Ra5 {[%clk 0:02:18]} 11. d4 {[%clk 0:02:51]}  Bb6 {[%clk 0:02:15]} 12. h3 {[%clk 0:02:45]}  Re8 {[%clk 0:02:08]} 13. Bf1 {[%clk 0:02:39]}  Ne7 {[%clk 0:01:49]} 14. Be3 {[%clk 0:02:35]}  c6 {[%clk 0:01:40]} 15. Qc2 {[%clk 0:02:24]}  Ng6 {[%clk 0:01:39]} 16. Rad1 {[%clk 0:02:24]}  Qc7 {[%clk 0:01:30]} 17. Qc1 {[%clk 0:02:22]}  Kh7 {[%clk 0:01:27]} 18. c4 {[%clk 0:02:17]}  exd4 {[%clk 0:01:25]} 19. Bxd4 {[%clk 0:02:16]}  Bxd4 {[%clk 0:01:24]} 20. Nxd4 {[%clk 0:02:16]}  Rae5 {[%clk 0:01:15]} 21. Bd3 {[%clk 0:02:12]}  Qb6 {[%clk 0:01:11]} 22. Nf3 {[%clk 0:02:08]}  R5e7 {[%clk 0:01:08]} 23. Qc2 {[%clk 0:01:42]}  a3 {[%clk 0:01:08]} 24. bxa3 {[%clk 0:01:42]}  Kg8 {[%clk 0:01:07]} 25. Qb3 {[%clk 0:01:40]}  Qa7 {[%clk 0:01:05]} 26. Qb4 {[%clk 0:01:39]}  Re6 {[%clk 0:00:31]} 27. Bf1 {[%clk 0:01:31]}  Nxe4 {[%clk 0:00:22]} 28. Nxe4 {[%clk 0:01:30]}  Rxe4 {[%clk 0:00:23]} 29. Rxe4 {[%clk 0:01:28]}  Rxe4 {[%clk 0:00:24]} 30. Qxd6 {[%clk 0:01:28]}  Be6 {[%clk 0:00:22]} 31. Bd3 {[%clk 0:01:24]}  Rxc4 {[%clk 0:00:19]} 32. Bxg6 {[%clk 0:01:21]} 1-0


[Site "https://www.chess.com"]

[Event "Titled Tuesday Blitz October 11 Late 2022"]
[White "Borawski, Jakub"]
[Black "Shandrygin, Nikita"]
[WhiteFideId "1143000"]
[BlackFideId "24198668"]
[WhiteElo "2122"]
[BlackElo "2323"]
[Result "0-1"]
[Round "04"]
[TimeControl "180+1"]
[Date "2022.10.12"]
[WhiteClock "0:00:05"]
[BlackClock "0:00:09"]

1. d4 {[%clk 0:03:00]}  Nf6 {[%clk 0:02:59]} 2. c4 {[%clk 0:03:00]}  e6 {[%clk 0:03:00]} 3. Nc3 {[%clk 0:03:00]}  Bb4 {[%clk 0:03:00]} 4. Qc2 {[%clk 0:03:01]}  O-O {[%clk 0:02:55]} 5. a3 {[%clk 0:03:02]}  Bxc3+ {[%clk 0:02:55]} 6. Qxc3 {[%clk 0:03:03]}  b6 {[%clk 0:02:56]} 7. Bg5 {[%clk 0:03:02]}  h6 {[%clk 0:02:56]} 8. Bh4 {[%clk 0:03:02]}  Bb7 {[%clk 0:02:56]} 9. Nf3 {[%clk 0:02:58]}  d6 {[%clk 0:02:53]} 10. e3 {[%clk 0:02:58]}  g5 {[%clk 0:02:53]} 11. Bg3 {[%clk 0:02:58]}  Ne4 {[%clk 0:02:54]} 12. Qc2 {[%clk 0:02:58]}  Nd7 {[%clk 0:02:54]} 13. Bd3 {[%clk 0:02:58]}  f5 {[%clk 0:02:55]} 14. Nd2 {[%clk 0:02:47]}  Nxd2 {[%clk 0:02:51]} 15. Qxd2 {[%clk 0:02:45]}  Bxg2 {[%clk 0:02:51]} 16. Rg1 {[%clk 0:02:45]}  Bf3 {[%clk 0:02:51]} 17. h4 {[%clk 0:02:40]}  Kf7 {[%clk 0:02:38]} 18. d5 {[%clk 0:02:33]}  Nc5 {[%clk 0:02:31]} 19. dxe6+ {[%clk 0:02:32]}  Kxe6 {[%clk 0:02:32]} 20. Bc2 {[%clk 0:02:28]}  Qf6 {[%clk 0:02:12]} 21. Rc1 {[%clk 0:02:00]}  Be4 {[%clk 0:01:54]} 22. Bxe4 {[%clk 0:01:55]}  fxe4 {[%clk 0:01:54]} 23. Qd5+ {[%clk 0:01:50]}  Kd7 {[%clk 0:01:54]} 24. hxg5 {[%clk 0:01:46]}  hxg5 {[%clk 0:01:47]} 25. Rc2 {[%clk 0:01:46]}  c6 {[%clk 0:01:29]} 26. Qd4 {[%clk 0:01:29]}  Qxd4 {[%clk 0:01:26]} 27. exd4 {[%clk 0:01:29]}  Nd3+ {[%clk 0:01:27]} 28. Ke2 {[%clk 0:01:27]}  Rae8 {[%clk 0:01:28]} 29. Rh1 {[%clk 0:01:22]}  Rf7 {[%clk 0:01:14]} 30. d5 {[%clk 0:01:15]}  Nf4+ {[%clk 0:01:04]} 31. Bxf4 {[%clk 0:01:03]}  gxf4 {[%clk 0:01:05]} 32. dxc6+ {[%clk 0:01:01]}  Kxc6 {[%clk 0:01:05]} 33. Rh6 {[%clk 0:01:01]}  e3 {[%clk 0:01:00]} 34. Rc3 {[%clk 0:00:57]}  f3+ {[%clk 0:00:59]} 35. Ke1 {[%clk 0:00:52]}  exf2+ {[%clk 0:00:55]} 36. Kxf2 {[%clk 0:00:48]}  Re2+ {[%clk 0:00:55]} 37. Kf1 {[%clk 0:00:48]}  f2 {[%clk 0:00:41]} 38. Rc1 {[%clk 0:00:43]}  Rxb2 {[%clk 0:00:41]} 39. Rd1 {[%clk 0:00:44]}  Kc5 {[%clk 0:00:36]} 40. Rhxd6 {[%clk 0:00:41]}  Kxc4 {[%clk 0:00:36]} 41. R6d4+ {[%clk 0:00:30]}  Kb3 {[%clk 0:00:36]} 42. R4d3+ {[%clk 0:00:27]}  Ka2 {[%clk 0:00:36]} 43. a4 {[%clk 0:00:18]}  Rg7 {[%clk 0:00:18]} 44. R1d2 {[%clk 0:00:17]}  Rf7 {[%clk 0:00:18]} 45. Rd1 {[%clk 0:00:15]}  Rb3 {[%clk 0:00:19]} 46. Rd5 {[%clk 0:00:11]}  Ka3 {[%clk 0:00:18]} 47. a5 {[%clk 0:00:11]}  b5 {[%clk 0:00:18]} 48. a6 {[%clk 0:00:11]}  Rb2 {[%clk 0:00:13]} 49. Rd7 {[%clk 0:00:10]}  Rxd7 {[%clk 0:00:06]} 50. Rxd7 {[%clk 0:00:11]}  Kb4 {[%clk 0:00:06]} 51. Rxa7 {[%clk 0:00:11]}  Ra2 {[%clk 0:00:07]} 52. Rb7 {[%clk 0:00:05]}  Rxa6 {[%clk 0:00:06]} 53. Kxf2 {[%clk 0:00:06]}  Re6 {[%clk 0:00:07]} 54. Kf3 {[%clk 0:00:04]}  Kc4 {[%clk 0:00:08]} 55. Rc7+ {[%clk 0:00:04]}  Kb3 {[%clk 0:00:08]} 56. Rb7 {[%clk 0:00:05]}  b4 {[%clk 0:00:08]} 57. Kf4 {[%clk 0:00:05]}  Ka3 {[%clk 0:00:08]} 58. Kf5 {[%clk 0:00:05]}  Re1 {[%clk 0:00:08]} 59. Kf4 {[%clk 0:00:06]}  b3 {[%clk 0:00:09]} 60. Ra7+ {[%clk 0:00:06]}  Kb2 {[%clk 0:00:09]} 61. Rb7 {[%clk 0:00:06]}  Kc2 {[%clk 0:00:08]} 62. Rc7+ {[%clk 0:00:07]}  Kb1 {[%clk 0:00:08]} 63. Rb7 {[%clk 0:00:07]}  b2 {[%clk 0:00:08]} 64. Rc7 {[%clk 0:00:07]}  Re8 {[%clk 0:00:09]} 65. Rc6 {[%clk 0:00:07]}  Ra8 {[%clk 0:00:09]} 66. Ke3 {[%clk 0:00:04]}  Ka2 {[%clk 0:00:09]} 67. Kd3 {[%clk 0:00:05]}  b1=Q+ {[%clk 0:00:09]} 0-1


[Site "https://www.chess.com"]

[Event "Titled Tuesday Blitz October 11 Late 2022"]
[White "Coelho, Ramyres Santana"]
[Black "Urbina Perez, Juan Antonio"]
[WhiteFideId "2120690"]
[BlackFideId "2217368"]
[WhiteElo "1888"]
[BlackElo "2197"]
[Result "1-0"]
[Round "04"]
[TimeControl "180+1"]
[Date "2022.10.12"]
[WhiteClock "0:00:11"]
[BlackClock "0:00:11"]

1. e4 {[%clk 0:03:00]}  c5 {[%clk 0:02:59]} 2. Nf3 {[%clk 0:02:59]}  e6 {[%clk 0:03:00]} 3. d4 {[%clk 0:03:00]}  cxd4 {[%clk 0:03:01]} 4. c3 {[%clk 0:03:00]}  dxc3 {[%clk 0:02:59]} 5. Nxc3 {[%clk 0:03:01]}  Ne7 {[%clk 0:02:56]} 6. Bc4 {[%clk 0:03:02]}  Ng6 {[%clk 0:02:55]} 7. O-O {[%clk 0:03:02]}  Nc6 {[%clk 0:02:56]} 8. Qe2 {[%clk 0:03:02]}  Bc5 {[%clk 0:02:51]} 9. Rd1 {[%clk 0:03:01]}  O-O {[%clk 0:02:50]} 10. a3 {[%clk 0:02:58]}  a6 {[%clk 0:02:47]} 11. b4 {[%clk 0:02:57]}  Ba7 {[%clk 0:02:46]} 12. Bg5 {[%clk 0:02:57]}  f6 {[%clk 0:02:45]} 13. Bxe6+ {[%clk 0:02:55]}  Kh8 {[%clk 0:02:39]} 14. Be3 {[%clk 0:02:45]}  Bxe3 {[%clk 0:02:36]} 15. Qxe3 {[%clk 0:02:43]}  b5 {[%clk 0:02:28]} 16. Rac1 {[%clk 0:02:36]}  Qc7 {[%clk 0:02:15]} 17. Ba2 {[%clk 0:02:30]}  Qb7 {[%clk 0:02:10]} 18. Rd5 {[%clk 0:02:24]}  Nce7 {[%clk 0:01:57]} 19. Rh5 {[%clk 0:02:22]}  d6 {[%clk 0:01:43]} 20. Nd4 {[%clk 0:02:15]}  Bg4 {[%clk 0:01:37]} 21. Rh3 {[%clk 0:01:51]}  Bxh3 {[%clk 0:01:36]} 22. Qxh3 {[%clk 0:01:52]}  Rac8 {[%clk 0:01:32]} 23. Ne6 {[%clk 0:01:41]}  Rfe8 {[%clk 0:01:28]} 24. Rd1 {[%clk 0:01:27]}  Nc6 {[%clk 0:01:12]} 25. Rd5 {[%clk 0:01:14]}  Nce5 {[%clk 0:01:10]} 26. Ne2 {[%clk 0:00:51]}  Qc6 {[%clk 0:00:59]} 27. f4 {[%clk 0:00:39]}  Qb6+ {[%clk 0:00:53]} 28. Kf1 {[%clk 0:00:36]}  Nc4 {[%clk 0:00:50]} 29. Rh5 {[%clk 0:00:13]}  Nd2+ {[%clk 0:00:34]} 30. Ke1 {[%clk 0:00:12]}  h6 {[%clk 0:00:15]} 31. Rxh6+ {[%clk 0:00:11]}  Kg8 {[%clk 0:00:11]} 32. Rxg6 {[%clk 0:00:11]} 1-0


[Site "https://www.chess.com"]